[Event "Gibraltar Masters 18th"]
[Site "Gibraltar"]
[Date "2020.01.26"]
[Round "6.46"]
[White "Csiki, Endre"]
[Black "Abergel, Thal"]
[Result "0-1"]
[ECO "B07"]
[WhiteElo "2263"]
[BlackElo "2478"]
[PlyCount "128"]
[EventDate "2020.01.21"]
[EventType "swiss"]
[EventRounds "10"]
[EventCountry "GGB"]
[SourceTitle "BritBase"]
[Source "John Saunders"]
[SourceDate "2021.06.05"]
[SourceVersion "1"]
[SourceVersionDate "2021.06.05"]
[SourceQuality "1"]
[TimeControl "40/100:0"]
[WhiteClock "0:27:59"]
[BlackClock "0:32:58"]

1. e4 {[%emt 0:00:00]} Nc6 {[%emt 0:00:00]} 2. d4 {[%emt 0:00:00]} d6 {[%emt 0:
00:00]} 3. c3 {[%emt 0:00:00]} Nf6 {[%emt 0:00:00]} 4. Bd3 {[%emt 0:00:00]} e5
{[%emt 0:00:00]} 5. Nf3 {[%emt 0:00:00]} g6 {[%emt 0:00:00]} 6. O-O {[%emt 0:
00:00]} Bg7 {[%emt 0:00:00]} 7. Re1 {[%emt 0:00:00]} O-O {[%emt 0:00:00]} 8. h3
{[%emt 0:00:00]} h6 {[%emt 0:00:00]} 9. Be3 {[%emt 0:00:00]} exd4 {[%emt 0:00:
00]} 10. Nxd4 {[%emt 0:00:00]} Ne5 {[%emt 0:00:00]} 11. Bc2 {[%emt 0:00:00]}
Nc4 {[%emt 0:00:00]} 12. Bc1 {[%emt 0:00:00]} c5 {[%emt 0:00:00]} 13. Nf3 {
[%emt 0:00:00]} d5 {[%emt 0:00:00]} 14. exd5 {[%emt 0:00:00]} Qxd5 {[%emt 0:00:
00]} 15. Qxd5 {[%emt 0:00:00]} Nxd5 {[%emt 0:00:00]} 16. Bb3 {[%emt 0:00:00]}
Ncb6 {[%emt 0:00:00]} 17. a4 {[%emt 0:00:00]} a5 {[%emt 0:00:00]} 18. Na3 {
[%emt 0:00:00]} Bd7 {[%emt 0:00:00]} 19. Nc4 {[%emt 0:00:00]} Nxc4 {[%emt 0:00:
00]} 20. Bxc4 {[%emt 0:00:00]} Nb6 {[%emt 0:00:00]} 21. Bb3 {[%emt 0:00:00]} c4
{[%emt 0:00:00]} 22. Be3 {[%emt 0:00:00]} cxb3 {[%emt 0:00:00]} 23. Bxb6 {
[%emt 0:00:00]} Rfe8 {[%emt 0:00:00]} 24. Rxe8+ {[%emt 0:00:00]} Rxe8 {[%emt 0:
00:00]} 25. Rd1 {[%emt 0:00:00]} Bxa4 {[%emt 0:00:00]} 26. Bxa5 {[%emt 0:00:00]
} Bc6 {[%emt 0:00:00]} 27. Nd4 {[%emt 0:00:00]} Ra8 {[%emt 0:00:00]} 28. Bb4 {
[%emt 0:00:00]} Ra2 {[%emt 0:00:00]} 29. Nxb3 {[%emt 0:00:00]} Rxb2 {[%emt 0:
00:00]} 30. Na5 {[%emt 0:00:00]} Ba4 {[%emt 0:00:00]} 31. Rc1 {[%emt 0:00:00]}
b5 {[%emt 0:00:00]} 32. Nb7 {[%emt 0:00:00]} g5 {[%emt 0:00:00]} 33. Ba3 {
[%emt 0:00:00]} Rd2 {[%emt 0:00:00]} 34. Bb4 {[%emt 0:00:00]} Bb3 {[%emt 0:00:
00]} 35. Nd6 {[%emt 0:00:00]} Bc4 {[%emt 0:00:00]} 36. Nxc4 {[%emt 0:00:00]}
bxc4 {[%emt 0:00:00]} 37. Ra1 {[%emt 0:00:00]} Rc2 {[%emt 0:00:00]} 38. Ra3 {
[%emt 0:00:00]} Be5 {[%emt 0:00:00]} 39. g3 {[%emt 0:00:00]} Kg7 {[%emt 0:00:
00]} 40. Kg2 {[%emt 0:00:00]} f6 {[%emt 0:00:00]} 41. Ba5 {[%emt 0:00:00]} Rb2
{[%emt 0:00:00]} 42. Ra4 {[%emt 0:00:00]} Rb5 {[%emt 0:00:00]} 43. Bb4 {
[%emt 0:00:00]} h5 {[%emt 0:00:56]} 44. Ra6 {[%emt 0:00:00]} Rb7 {[%emt 0:00:
24]} 45. Kf3 {[%emt 0:00:00]} Bxc3 {[%emt 0:00:00]} 46. Bxc3 {[%emt 0:00:00]}
Rb3 {[%emt 0:00:00]} 47. Rc6 {[%emt 0:00:00]} Rxc3+ {[%emt 0:00:00]} 48. Kg2 {
[%emt 0:00:00]} g4 {[%emt 0:00:00]} 49. Rc7+ {[%emt 0:00:00]} Kg6 {[%emt 0:00:
00]} 50. Rc5 {[%emt 0:00:00]} Rc1 {[%emt 0:00:00]} 51. h4 {[%emt 0:00:00]} c3 {
[%emt 0:00:00]} 52. Kh2 {[%emt 0:00:00]} f5 {[%emt 0:00:00]} 53. Rc6+ {[%emt 0:
00:00]} Kf7 {[%emt 0:00:00]} 54. Kg2 {[%emt 0:00:00]} Ke7 {[%emt 0:00:00]} 55.
Rc8 {[%emt 0:00:00]} Kd7 {[%emt 0:00:00]} 56. Rc5 {[%emt 0:00:00]} Kd6 {
[%emt 0:00:00]} 57. Rc8 {[%emt 0:00:00]} Kd5 {[%emt 0:00:00]} 58. Rc7 {[%emt 0:
00:00]} Kd4 {[%emt 0:00:00]} 59. Rd7+ {[%emt 0:00:00]} Kc4 {[%emt 0:00:00]} 60.
Rc7+ {[%emt 0:00:00]} Kd3 {[%emt 0:00:00]} 61. Rd7+ {[%emt 0:00:00]} Kc2 {
[%emt 0:00:00]} 62. Rd5 {[%emt 0:00:00]} Rd1 {[%emt 0:00:00]} 63. Rxf5 {
[%emt 0:00:00]} Kb3 {[%emt 0:00:00]} 64. Rxh5 {[%emt 0:00:00]} c2 {[%emt 0:00:
00]} 0-1

[Event "Gibraltar Masters 18th"]
[Site "Gibraltar"]
[Date "2020.01.26"]
[Round "6.47"]
[White "Alboredo, Julia"]
[Black "Song, Raymond"]
[Result "0-1"]
[ECO "B48"]
[WhiteElo "2190"]
[BlackElo "2478"]
[PlyCount "46"]
[EventDate "2020.01.21"]
[EventType "swiss"]
[EventRounds "10"]
[EventCountry "GGB"]
[SourceTitle "BritBase"]
[Source "John Saunders"]
[SourceDate "2021.06.05"]
[SourceVersion "1"]
[SourceVersionDate "2021.06.05"]
[SourceQuality "1"]
[TimeControl "40/100:0"]
[WhiteClock "0:01:47"]
[BlackClock "1:26:17"]

1. e4 {[%emt 0:00:00]} c5 {[%emt 0:00:00]} 2. Nf3 {[%emt 0:00:00]} e6 {[%emt 0:
00:00]} 3. d4 {[%emt 0:00:00]} cxd4 {[%emt 0:00:00]} 4. Nxd4 {[%emt 0:00:00]}
Nc6 {[%emt 0:00:00]} 5. Nc3 {[%emt 0:00:00]} Qc7 {[%emt 0:00:00]} 6. Be3 {
[%emt 0:00:00]} a6 {[%emt 0:00:00]} 7. Qf3 {[%emt 0:00:00]} Nf6 {[%emt 0:00:00]
} 8. O-O-O {[%emt 0:00:00]} Ne5 {[%emt 0:00:00]} 9. Qg3 {[%emt 0:00:00]} b5 {
[%emt 0:00:00]} 10. f4 {[%emt 0:00:00]} Neg4 {[%emt 0:00:00]} 11. e5 {[%emt 0:
00:00]} Nxe3 {[%emt 0:00:00]} 12. Qxe3 {[%emt 0:00:00]} b4 {[%emt 0:00:00]} 13.
exf6 {[%emt 0:00:00]} bxc3 {[%emt 0:00:00]} 14. f5 {[%emt 0:00:00]} gxf6 {
[%emt 0:00:00]} 15. fxe6 {[%emt 0:00:00]} dxe6 {[%emt 0:00:00]} 16. Qf3 {
[%emt 0:00:00]} Rb8 {[%emt 0:00:00]} 17. b3 {[%emt 0:00:00]} Bd7 {[%emt 0:00:
00]} 18. Rd3 {[%emt 0:00:00]} f5 {[%emt 0:00:00]} 19. Rxc3 {[%emt 0:00:00]} Qe5
{[%emt 0:00:00]} 20. Rd3 {[%emt 0:00:00]} Bg7 {[%emt 0:00:00]} 21. Be2 {
[%emt 0:00:00]} O-O {[%emt 0:00:00]} 22. Nxf5 {[%emt 0:00:00]} exf5 {[%emt 0:
00:00]} 23. Rxd7 {[%emt 0:00:00]} Qa1+ {[%emt 0:00:00]} 0-1

[Event "Gibraltar Masters 18th"]
[Site "Gibraltar"]
[Date "2020.01.26"]
[Round "6.48"]
[White "Barrish, Daniel"]
[Black "Kryakvin, Dmitry"]
[Result "0-1"]
[ECO "E11"]
[WhiteElo "2352"]
[BlackElo "2592"]
[PlyCount "102"]
[EventDate "2020.01.21"]
[EventType "swiss"]
[EventRounds "10"]
[EventCountry "GGB"]
[SourceTitle "BritBase"]
[Source "John Saunders"]
[SourceDate "2021.06.05"]
[SourceVersion "1"]
[SourceVersionDate "2021.06.05"]
[SourceQuality "1"]
[TimeControl "40/100:0"]
[WhiteClock "0:46:56"]
[BlackClock "0:49:47"]

1. d4 {[%emt 0:00:00]} e6 {[%emt 0:00:00]} 2. c4 {[%emt 0:00:00]} Bb4+ {
[%emt 0:00:00]} 3. Bd2 {[%emt 0:00:00]} a5 {[%emt 0:00:00]} 4. Nf3 {[%emt 0:00:
00]} d6 {[%emt 0:00:00]} 5. g3 {[%emt 0:00:00]} Nc6 {[%emt 0:00:00]} 6. Nc3 {
[%emt 0:00:00]} Nf6 {[%emt 0:00:00]} 7. Bg2 {[%emt 0:00:00]} O-O {[%emt 0:00:
00]} 8. O-O {[%emt 0:00:00]} Re8 {[%emt 0:00:00]} 9. Rc1 {[%emt 0:00:00]} e5 {
[%emt 0:00:00]} 10. d5 {[%emt 0:00:00]} Nb8 {[%emt 0:00:00]} 11. Bg5 {[%emt 0:
00:00]} Nbd7 {[%emt 0:00:00]} 12. Bh3 {[%emt 0:00:00]} h6 {[%emt 0:00:00]} 13.
Bxf6 {[%emt 0:00:00]} Nxf6 {[%emt 0:00:00]} 14. Bxc8 {[%emt 0:00:00]} Qxc8 {
[%emt 0:00:00]} 15. Kg2 {[%emt 0:00:00]} Qd7 {[%emt 0:00:00]} 16. a3 {[%emt 0:
00:00]} Bxc3 {[%emt 0:00:00]} 17. Rxc3 {[%emt 0:00:00]} a4 {[%emt 0:00:00]} 18.
Qc2 {[%emt 0:00:00]} e4 {[%emt 0:00:00]} 19. Nd4 {[%emt 0:00:00]} Re5 {[%emt 0:
00:00]} 20. h3 {[%emt 0:00:00]} c6 {[%emt 0:00:00]} 21. dxc6 {[%emt 0:00:00]}
bxc6 {[%emt 0:00:00]} 22. b4 {[%emt 0:00:00]} axb3 {[%emt 0:00:00]} 23. Qxb3 {
[%emt 0:00:00]} Rea5 {[%emt 0:00:00]} 24. Rb1 {[%emt 0:00:00]} c5 {[%emt 0:00:
00]} 25. Nc2 {[%emt 0:00:00]} d5 {[%emt 0:00:00]} 26. cxd5 {[%emt 0:00:00]}
Nxd5 {[%emt 0:00:00]} 27. Rc4 {[%emt 0:00:00]} Qe6 {[%emt 0:00:00]} 28. a4 {
[%emt 0:00:00]} Kh7 {[%emt 0:00:00]} 29. Ne3 {[%emt 0:00:00]} Nxe3+ {[%emt 0:
00:00]} 30. fxe3 {[%emt 0:00:00]} Rb8 {[%emt 0:00:00]} 31. Qxb8 {[%emt 0:00:00]
} Qxc4 {[%emt 0:00:00]} 32. Kf2 {[%emt 0:00:00]} Rxa4 {[%emt 0:00:00]} 33. Qb5
{[%emt 0:00:00]} h5 {[%emt 0:00:00]} 34. Qxc4 {[%emt 0:00:00]} Rxc4 {[%emt 0:
00:00]} 35. Ke1 {[%emt 0:00:00]} Kg6 {[%emt 0:00:00]} 36. Kd2 {[%emt 0:00:00]}
Rb4 {[%emt 0:00:00]} 37. Rc1 {[%emt 0:00:00]} Rb2+ {[%emt 0:00:00]} 38. Kd1 {
[%emt 0:00:00]} Rb5 {[%emt 0:00:00]} 39. Kc2 {[%emt 0:00:00]} Rb6 {[%emt 0:00:
00]} 40. Kc3 {[%emt 0:00:00]} Rf6 {[%emt 0:00:00]} 41. Kc4 {[%emt 0:00:00]} Rf5
{[%emt 0:00:00]} 42. h4 {[%emt 0:00:00]} f6 {[%emt 0:00:00]} 43. Rd1 {[%emt 0:
00:00]} Rf2 {[%emt 0:01:48]} 44. Kxc5 {[%emt 0:00:10]} Rg2 {[%emt 0:00:00]} 45.
Rd4 {[%emt 0:01:01]} Rxg3 {[%emt 0:00:00]} 46. Rxe4 {[%emt 0:00:26]} Rg2 {
[%emt 0:00:00]} 47. Rf4 {[%emt 0:00:00]} Rxe2 {[%emt 0:00:00]} 48. Kd4 {
[%emt 0:03:29]} Rg2 {[%emt 0:00:00]} 49. Ke4 {[%emt 0:00:00]} Rg4 {[%emt 0:00:
00]} 50. Kf3 {[%emt 0:00:00]} Rxf4+ {[%emt 0:00:00]} 51. Kxf4 {[%emt 0:00:00]}
Kf7 {[%emt 0:00:00]} 0-1

[Event "Gibraltar Masters 18th"]
[Site "Gibraltar"]
[Date "2020.01.26"]
[Round "6.49"]
[White "Santos Ruiz, Miguel"]
[Black "Mullick, Raahil"]
[Result "1/2-1/2"]
[ECO "A11"]
[WhiteElo "2591"]
[BlackElo "2382"]
[PlyCount "63"]
[EventDate "2020.01.21"]
[EventType "swiss"]
[EventRounds "10"]
[EventCountry "GGB"]
[SourceTitle "BritBase"]
[Source "John Saunders"]
[SourceDate "2021.06.05"]
[SourceVersion "1"]
[SourceVersionDate "2021.06.05"]
[SourceQuality "1"]
[TimeControl "40/100:0"]
[WhiteClock "0:22:23"]
[BlackClock "0:06:23"]

1. Nf3 {[%emt 0:00:00]} d5 {[%emt 0:00:00]} 2. e3 {[%emt 0:00:00]} Nf6 {
[%emt 0:00:00]} 3. c4 {[%emt 0:00:00]} c6 {[%emt 0:00:00]} 4. Nc3 {[%emt 0:00:
00]} Bg4 {[%emt 0:00:00]} 5. cxd5 {[%emt 0:00:00]} Bxf3 {[%emt 0:00:00]} 6.
Qxf3 {[%emt 0:00:00]} cxd5 {[%emt 0:00:00]} 7. d4 {[%emt 0:00:00]} Nc6 {
[%emt 0:00:00]} 8. Bd2 {[%emt 0:00:00]} e6 {[%emt 0:00:00]} 9. g4 {[%emt 0:00:
00]} g6 {[%emt 0:00:00]} 10. Bd3 {[%emt 0:00:00]} h5 {[%emt 0:00:00]} 11. g5 {
[%emt 0:00:00]} Nd7 {[%emt 0:00:00]} 12. h4 {[%emt 0:00:00]} Bg7 {[%emt 0:00:
00]} 13. Qe2 {[%emt 0:00:00]} O-O {[%emt 0:00:00]} 14. f4 {[%emt 0:00:00]} a6 {
[%emt 0:00:00]} 15. Rc1 {[%emt 0:00:00]} Rc8 {[%emt 0:00:00]} 16. O-O {[%emt 0:
00:00]} Re8 {[%emt 0:00:00]} 17. Rfd1 {[%emt 0:00:00]} Nb6 {[%emt 0:00:00]} 18.
Be1 {[%emt 0:00:00]} Ne7 {[%emt 0:00:00]} 19. Nb1 {[%emt 0:00:00]} Nf5 {
[%emt 0:00:00]} 20. Nd2 {[%emt 0:00:00]} Qd7 {[%emt 0:00:00]} 21. Nf3 {[%emt 0:
00:00]} Rxc1 {[%emt 0:00:00]} 22. Rxc1 {[%emt 0:00:00]} Rc8 {[%emt 0:00:00]}
23. Rxc8+ {[%emt 0:00:00]} Qxc8 {[%emt 0:00:00]} 24. b3 {[%emt 0:00:00]} Qc1 {
[%emt 0:00:00]} 25. Qd2 {[%emt 0:00:00]} Qxd2 {[%emt 0:00:00]} 26. Bxd2 {
[%emt 0:00:00]} Kf8 {[%emt 0:00:00]} 27. Bxf5 {[%emt 0:00:00]} exf5 {[%emt 0:
00:00]} 28. Bb4+ {[%emt 0:00:00]} Ke8 {[%emt 0:00:00]} 29. Kf2 {[%emt 0:00:00]}
Kd7 {[%emt 0:00:00]} 30. Ke2 {[%emt 0:00:00]} Nc8 {[%emt 0:00:00]} 31. Kd3 {
[%emt 0:00:00]} Nd6 {[%emt 0:00:00]} 32. Bxd6 {[%emt 0:00:00]} 1/2-1/2

[Event "Gibraltar Masters 18th"]
[Site "Gibraltar"]
[Date "2020.01.26"]
[Round "6.50"]
[White "Ali Marandi, Cemil Can"]
[Black "Hedman, Erik"]
[Result "1-0"]
[ECO "A48"]
[WhiteElo "2546"]
[BlackElo "2376"]
[PlyCount "65"]
[EventDate "2020.01.21"]
[EventType "swiss"]
[EventRounds "10"]
[EventCountry "GGB"]
[SourceTitle "BritBase"]
[Source "John Saunders"]
[SourceDate "2021.06.05"]
[SourceVersion "1"]
[SourceVersionDate "2021.06.05"]
[SourceQuality "1"]
[TimeControl "40/100:0"]
[WhiteClock "0:32:12"]
[BlackClock "0:01:43"]

1. d4 {[%emt 0:00:00]} Nf6 {[%emt 0:00:00]} 2. Bg5 {[%emt 0:00:00]} g6 {
[%emt 0:00:00]} 3. Nf3 {[%emt 0:00:00]} Bg7 {[%emt 0:00:00]} 4. Nbd2 {[%emt 0:
00:00]} O-O {[%emt 0:00:00]} 5. e4 {[%emt 0:00:00]} h6 {[%emt 0:00:00]} 6. Bh4
{[%emt 0:00:00]} d6 {[%emt 0:00:00]} 7. c3 {[%emt 0:00:00]} Nc6 {[%emt 0:00:00]
} 8. Qc2 {[%emt 0:00:00]} e5 {[%emt 0:00:00]} 9. dxe5 {[%emt 0:00:00]} Nxe5 {
[%emt 0:00:00]} 10. Nxe5 {[%emt 0:00:00]} dxe5 {[%emt 0:00:00]} 11. O-O-O {
[%emt 0:00:00]} Qe8 {[%emt 0:00:00]} 12. f3 {[%emt 0:00:00]} a5 {[%emt 0:00:00]
} 13. Kb1 {[%emt 0:00:00]} Bd7 {[%emt 0:00:00]} 14. Nc4 {[%emt 0:00:00]} Ba4 {
[%emt 0:00:00]} 15. b3 {[%emt 0:00:00]} Bc6 {[%emt 0:00:00]} 16. Ne3 {[%emt 0:
00:00]} Nd7 {[%emt 0:00:00]} 17. Nd5 {[%emt 0:00:00]} Bxd5 {[%emt 0:00:00]} 18.
Rxd5 {[%emt 0:00:00]} a4 {[%emt 0:00:00]} 19. b4 {[%emt 0:00:00]} Nb6 {[%emt 0:
00:00]} 20. Rd2 {[%emt 0:00:00]} a3 {[%emt 0:00:00]} 21. Qb3 {[%emt 0:00:00]}
Na4 {[%emt 0:00:00]} 22. Be2 {[%emt 0:00:00]} Kh8 {[%emt 0:00:00]} 23. Rhd1 {
[%emt 0:00:00]} f5 {[%emt 0:00:00]} 24. Rd7 {[%emt 0:00:00]} g5 {[%emt 0:00:00]
} 25. Bg3 {[%emt 0:00:00]} fxe4 {[%emt 0:00:00]} 26. fxe4 {[%emt 0:00:00]} Qg6
{[%emt 0:00:00]} 27. Rxc7 {[%emt 0:00:00]} Qxe4+ {[%emt 0:00:00]} 28. Qc2 {
[%emt 0:00:00]} Qxc2+ {[%emt 0:00:00]} 29. Kxc2 {[%emt 0:00:00]} Rad8 {[%emt 0:
00:33]} 30. Rxd8 {[%emt 0:00:00]} Rxd8 {[%emt 0:00:00]} 31. Kb3 {[%emt 0:00:00]
} Rd2 {[%emt 0:00:00]} 32. Rc8+ {[%emt 0:00:00]} Kh7 {[%emt 0:00:00]} 33. Bf3 {
[%emt 0:00:00]} 1-0

[Event "Gibraltar Masters 18th"]
[Site "Gibraltar"]
[Date "2020.01.26"]
[Round "6.51"]
[White "Baron, Tal"]
[Black "Pigott, John C"]
[Result "1-0"]
[ECO "B90"]
[WhiteElo "2529"]
[BlackElo "2370"]
[PlyCount "125"]
[EventDate "2020.01.21"]
[EventType "swiss"]
[EventRounds "10"]
[EventCountry "GGB"]
[SourceTitle "BritBase"]
[Source "John Saunders"]
[SourceDate "2021.06.05"]
[SourceVersion "1"]
[SourceVersionDate "2021.06.05"]
[SourceQuality "1"]
[TimeControl "40/100:0"]
[WhiteClock "0:42:15"]
[BlackClock "0:06:11"]

1. e4 {[%emt 0:00:00]} c5 {[%emt 0:00:00]} 2. Nf3 {[%emt 0:00:00]} d6 {[%emt 0:
00:00]} 3. d4 {[%emt 0:00:00]} cxd4 {[%emt 0:00:00]} 4. Nxd4 {[%emt 0:00:00]}
Nf6 {[%emt 0:00:00]} 5. Nc3 {[%emt 0:00:00]} a6 {[%emt 0:00:00]} 6. h4 {
[%emt 0:00:00]} Nc6 {[%emt 0:00:00]} 7. Be3 {[%emt 0:00:00]} Ng4 {[%emt 0:00:
00]} 8. Nxc6 {[%emt 0:00:00]} bxc6 {[%emt 0:00:00]} 9. Bd2 {[%emt 0:00:00]} Qb6
{[%emt 0:00:00]} 10. Qe2 {[%emt 0:00:00]} Qxb2 {[%emt 0:00:00]} 11. Rb1 {
[%emt 0:00:00]} Qa3 {[%emt 0:00:00]} 12. Rb3 {[%emt 0:00:00]} Qa5 {[%emt 0:00:
00]} 13. Nd5 {[%emt 0:00:00]} Qd8 {[%emt 0:00:00]} 14. Nb6 {[%emt 0:00:00]} Ra7
{[%emt 0:00:00]} 15. Nxc8 {[%emt 0:00:00]} Qxc8 {[%emt 0:00:00]} 16. Rhh3 {
[%emt 0:00:00]} e5 {[%emt 0:00:00]} 17. Rb6 {[%emt 0:00:00]} Be7 {[%emt 0:00:
00]} 18. Qc4 {[%emt 0:00:00]} O-O {[%emt 0:00:00]} 19. Rxc6 {[%emt 0:00:00]}
Qd8 {[%emt 0:00:00]} 20. Be2 {[%emt 0:00:00]} Nf6 {[%emt 0:00:00]} 21. Rb3 {
[%emt 0:00:00]} Nd7 {[%emt 0:00:00]} 22. g3 {[%emt 0:00:00]} Nc5 {[%emt 0:00:
00]} 23. Rbb6 {[%emt 0:00:00]} Rc7 {[%emt 0:00:00]} 24. Qd5 {[%emt 0:00:00]}
Rxc6 {[%emt 0:00:00]} 25. Qxc6 {[%emt 0:00:00]} Nxe4 {[%emt 0:00:00]} 26. Ba5 {
[%emt 0:00:00]} d5 {[%emt 0:00:00]} 27. Rb5 {[%emt 0:00:00]} Bb4+ {[%emt 0:00:
00]} 28. Bxb4 {[%emt 0:00:00]} axb5 {[%emt 0:00:00]} 29. Bxf8 {[%emt 0:00:00]}
Kxf8 {[%emt 0:00:00]} 30. Qxb5 {[%emt 0:00:00]} g6 {[%emt 0:00:00]} 31. Bf3 {
[%emt 0:00:00]} Nf6 {[%emt 0:00:00]} 32. a4 {[%emt 0:00:00]} Qc7 {[%emt 0:00:
00]} 33. Qb4+ {[%emt 0:00:00]} Kg7 {[%emt 0:00:00]} 34. c3 {[%emt 0:00:00]} e4
{[%emt 0:00:00]} 35. Be2 {[%emt 0:00:00]} e3 {[%emt 0:00:00]} 36. Qd4 {[%emt 0:
00:00]} exf2+ {[%emt 0:00:00]} 37. Kxf2 {[%emt 0:00:00]} h6 {[%emt 0:00:00]}
38. Bf3 {[%emt 0:00:00]} g5 {[%emt 0:00:00]} 39. h5 {[%emt 0:00:00]} Qa5 {
[%emt 0:00:43]} 40. Kg2 {[%emt 0:00:00]} Qa8 {[%emt 0:00:00]} 41. Kf2 {[%emt 0:
00:00]} Qc8 {[%emt 0:00:00]} 42. g4 {[%emt 0:00:00]} Qa8 {[%emt 0:00:00]} 43.
Ke1 {[%emt 0:00:00]} Qd8 {[%emt 0:00:00]} 44. Kd1 {[%emt 0:00:00]} Qd6 {
[%emt 0:00:00]} 45. Kc2 {[%emt 0:00:00]} Qh2+ {[%emt 0:00:00]} 46. Kb3 {
[%emt 0:00:00]} Qb8+ {[%emt 0:00:00]} 47. Ka2 {[%emt 0:00:00]} Qh2+ {[%emt 0:
00:00]} 48. Kb1 {[%emt 0:00:00]} Qb8+ {[%emt 0:00:00]} 49. Kc1 {[%emt 0:00:00]}
Qd6 {[%emt 0:00:00]} 50. Bd1 {[%emt 0:00:00]} Kf8 {[%emt 0:00:00]} 51. Kb2 {
[%emt 0:00:00]} Ke7 {[%emt 0:00:00]} 52. a5 {[%emt 0:00:00]} Nd7 {[%emt 0:00:
00]} 53. Bb3 {[%emt 0:00:00]} Qh2+ {[%emt 0:00:00]} 54. Bc2 {[%emt 0:00:00]}
Qd6 {[%emt 0:00:00]} 55. Bb3 {[%emt 0:00:00]} Qh2+ {[%emt 0:00:00]} 56. Kc1 {
[%emt 0:00:00]} Qh1+ {[%emt 0:00:00]} 57. Bd1 {[%emt 0:00:00]} Qe4 {[%emt 0:00:
00]} 58. Qxe4+ {[%emt 0:00:00]} dxe4 {[%emt 0:00:00]} 59. Kd2 {[%emt 0:00:00]}
Kd6 {[%emt 0:00:00]} 60. Ke3 {[%emt 0:00:00]} Nc5 {[%emt 0:00:00]} 61. Be2 {
[%emt 0:00:00]} Kc6 {[%emt 0:00:00]} 62. Bc4 {[%emt 0:00:00]} f6 {[%emt 0:00:
00]} 63. Kd4 {[%emt 0:00:00]} 1-0

[Event "Gibraltar Masters 18th"]
[Site "Gibraltar"]
[Date "2020.01.26"]
[Round "6.52"]
[White "Libiszewski, Fabien"]
[Black "Reimanis, Ritvars"]
[Result "0-1"]
[ECO "B31"]
[WhiteElo "2522"]
[BlackElo "2370"]
[PlyCount "90"]
[EventDate "2020.01.21"]
[EventType "swiss"]
[EventRounds "10"]
[EventCountry "GGB"]
[SourceTitle "BritBase"]
[Source "John Saunders"]
[SourceDate "2021.06.05"]
[SourceVersion "1"]
[SourceVersionDate "2021.06.05"]
[SourceQuality "1"]
[TimeControl "40/100:0"]
[WhiteClock "0:32:51"]
[BlackClock "0:51:20"]

1. e4 {[%emt 0:00:00]} c5 {[%emt 0:00:00]} 2. Nf3 {[%emt 0:00:00]} Nc6 {
[%emt 0:00:00]} 3. Bb5 {[%emt 0:00:00]} g6 {[%emt 0:00:00]} 4. Bxc6 {[%emt 0:
00:00]} bxc6 {[%emt 0:00:00]} 5. d4 {[%emt 0:00:00]} cxd4 {[%emt 0:00:00]} 6.
Qxd4 {[%emt 0:00:00]} f6 {[%emt 0:00:00]} 7. O-O {[%emt 0:00:00]} Bg7 {[%emt 0:
00:00]} 8. c4 {[%emt 0:00:00]} Nh6 {[%emt 0:00:00]} 9. Bxh6 {[%emt 0:00:00]}
Bxh6 {[%emt 0:00:00]} 10. Rd1 {[%emt 0:00:00]} O-O {[%emt 0:00:00]} 11. c5 {
[%emt 0:00:00]} Qe8 {[%emt 0:00:00]} 12. Na3 {[%emt 0:00:00]} Qf7 {[%emt 0:00:
00]} 13. Qa4 {[%emt 0:00:00]} Qe6 {[%emt 0:00:00]} 14. Re1 {[%emt 0:00:00]} Rb8
{[%emt 0:00:00]} 15. Nc4 {[%emt 0:00:00]} Rb7 {[%emt 0:00:00]} 16. Rad1 {
[%emt 0:00:00]} Bg7 {[%emt 0:00:00]} 17. Nd4 {[%emt 0:00:00]} Qf7 {[%emt 0:00:
00]} 18. f4 {[%emt 0:00:00]} Re8 {[%emt 0:00:00]} 19. b3 {[%emt 0:00:00]} Bf8 {
[%emt 0:00:00]} 20. f5 {[%emt 0:00:00]} e5 {[%emt 0:00:00]} 21. fxe6 {[%emt 0:
00:00]} dxe6 {[%emt 0:00:00]} 22. Nd6 {[%emt 0:00:00]} Bxd6 {[%emt 0:00:00]}
23. cxd6 {[%emt 0:00:00]} c5 {[%emt 0:00:00]} 24. Nf3 {[%emt 0:00:00]} e5 {
[%emt 0:00:00]} 25. Qc6 {[%emt 0:00:00]} Rd8 {[%emt 0:00:00]} 26. Qxc5 {
[%emt 0:00:00]} Rbd7 {[%emt 0:00:00]} 27. Rd2 {[%emt 0:00:00]} Bb7 {[%emt 0:00:
00]} 28. Qxa7 {[%emt 0:00:00]} Bxe4 {[%emt 0:00:00]} 29. Qc5 {[%emt 0:00:00]}
Bb7 {[%emt 0:00:00]} 30. Red1 {[%emt 0:00:00]} Qe6 {[%emt 0:00:00]} 31. Ne1 {
[%emt 0:00:00]} Rc8 {[%emt 0:00:00]} 32. Qb4 {[%emt 0:00:00]} e4 {[%emt 0:00:
00]} 33. Nc2 {[%emt 0:00:00]} Ba6 {[%emt 0:00:00]} 34. Ne3 {[%emt 0:00:00]} Bd3
{[%emt 0:00:00]} 35. Rxd3 {[%emt 0:00:00]} exd3 {[%emt 0:00:00]} 36. Rxd3 {
[%emt 0:00:00]} Rc1+ {[%emt 0:00:00]} 37. Kf2 {[%emt 0:00:00]} Qe5 {[%emt 0:00:
00]} 38. Qd2 {[%emt 0:00:00]} Qf4+ {[%emt 0:00:00]} 39. Ke2 {[%emt 0:00:00]}
Rg1 {[%emt 0:00:00]} 40. g3 {[%emt 0:00:00]} Qe4 {[%emt 0:00:00]} 41. Qc3 {
[%emt 0:00:00]} Kg7 {[%emt 0:00:00]} 42. Kf2 {[%emt 0:00:00]} Qh1 {[%emt 0:00:
00]} 43. h3 {[%emt 0:00:00]} Qh2+ {[%emt 0:00:00]} 44. Kf3 {[%emt 0:00:00]}
Rxg3+ {[%emt 0:00:00]} 45. Ke4 {[%emt 0:00:00]} Qh1+ {[%emt 0:00:00]} 0-1